Cogmind - Beta 14 @@@ ROGUE MODE // 2024.10.23 @ 13:10:01 Player: Ae Result: Destroyed by MU-8JM(R) with Subdweller Machine Gun Performance ------------- Evolutions (0) 0 Regions Visited (2) 400 Robots Destroyed (28) 140 Value Destroyed (623) 623 Prototype IDs (0) 0 Alien Tech Used (0) 0 Bonus (0) 0 TOTAL SCORE: 1163 Bonus ------- None Cogmind --------- Core Integrity 0/250 Matter 263/300 Energy 265/265 System Corruption 0% Temperature Cool (0) Movement Rolling (215) Ox9 Location -10/Subcaves Parts ------- > --- POWER (1) -------- Improved Ion Engine > --- PROPULSION (2) --- Wheel Subdweller Monowheel > --- UTILITY (2) ------ Huge Storage Unit > --- WEAPON (2) ------- Spread Laser Improved Light Cannon > --- INVENTORY (25) --- Improved Ion Engine Subdweller Power Source Subdweller Power Source Light Treads Disposable Heat Sink Subdweller Optics Subdweller Optics Improved Terrain Scanner Seismic Detector Hardened Light Armor Plating Spread Laser Subdweller Laser Subdweller Beam Cannon Improved Light Cannon Grenade Launcher Hammer Peak State ------------ > --- POWER ------------ Improved Ion Engine > --- PROPULSION ------- Light Treads Compact Wheel > --- UTILITY ---------- Improved Heat Sink Large Storage Unit > --- WEAPON ----------- Spread Laser Improved Light Cannon > --- INVENTORY -------- Improved Ion Engine Light Treads Wheel Improved Terrain Scanner Seismic Detector Hardened Light Armor Plating Spread Laser Spread Laser Improved Light Cannon Grenade Launcher Grenade Launcher Grenade Launcher Mining Laser Hammer [Rating: 14] Favorites ----------- Power Improved Ion Engine Engine Improved Ion Engine Propulsion Light Treads Treads Light Treads Wheel Compact Wheel Utility Large Storage Unit Device Improved Heat Sink Storage Large Storage Unit Protection Hardened Light Armor Plating Weapon Spread Laser Energy Gun Spread Laser Ballistic Gun Assault Rifle Ballistic Cannon Improved Light Cannon Special Weapon Mining Laser Impact Weapon Hammer Build | -11 -10 -10 ------- Run | Yrd Mat Sub Slots Evolved . | . . . Power . | . . . Propulsion . | . . . Utility . | . . . Weapon . | . . . Parts Attached 27 | 7 8 12 Power 2 | 1 1 . Engine 2 | 1 1 . Core . | . . . Reactor . | . . . Propulsion 6 | 2 . 4 Treads 2 | 1 . 1 Leg . | . . . Wheel 4 | 1 . 3 Hover . | . . . Flight . | . . . Utility 7 | 2 2 3 Device 3 | 1 1 1 Storage 3 | 1 1 1 Processor . | . . . Hackware . | . . . Protection 1 | . . 1 Artifact . | . . . Weapon 12 | 2 5 5 Energy Gun 2 | . 1 1 Energy Cannon . | . . . Ballistic Gun 3 | 2 1 . Ballistic Cannon 3 | . 1 2 Launcher . | . . . Special Weapon 1 | . 1 . Impact Weapon 3 | . 1 2 Slashing Weapon . | . . . Piercing Weapon . | . . . Special Melee Weapon . | . . . Unidentified Prototypes . | . . . Parts Lost 3 | . . 3 Power . | . . . Propulsion 2 | . . 2 Utility 1 | . . 1 Weapon . | . . . Highest Loss Streak 2 | . . 2 To Critical Strikes . | . . . Average Slot Usage (%) 99 | . 99 100 Engine 14 | . 14 14 Treads 13 | . 14 13 Wheel 14 | . 14 14 Device 5 | . 14 . Storage 14 | . 14 14 Protection 8 | . . 13 Energy Gun 12 | . 11 13 Ballistic Gun 4 | . 11 . Ballistic Cannon 7 | . 3 10 Impact Weapon 3 | . 1 4 Peak Build Rating 14 | 7 14 14 Average Rating 11 | 5 11 12 On Entrance 6 | . 7 13 Naked Turns . | . . . Heaviest Build 99 | 13 35 99 Greatest Support 20 | 20 16 16 Greatest Overweight (x) 9 | 2 2 9 Average Overweight (x) 2 | . 1 2 Largest Inventory Capacity 25 | 8 15 25 Average Capacity 14 | 7 12 15 Most Carried 16 | 6 15 16 Average Carried 12 | 3 11 14 Final Capacity 25 | 8 15 25 Final Carried 16 | 6 15 16 Class Distribution -------------------- 100% | Mutant Dominant Class ---------------- Mutant | -10/Materials Mutant | -10/Subcaves Resources | -11 -10 -10 ----------- Run | Yrd Mat Sub Matter Collected 666 | 301 204 161 Remotely . | . . . Salvage Created 637 | 64 378 195 Parts 52 | 9 30 13 Haulers Intercepted 2 | . 2 . Recyclers Shooed 2 | 2 . . Parts Field Recycled . | . . . Retrieved Matter . | . . . Parts Self-Destructed 6 | . . 6 Prevented . | . . . Kills | -11 -10 -10 ------- Run | Yrd Mat Sub Combat Hostiles Destroyed 22 | . 15 7 Melee 1 | . . 1 Guns 17 | . 14 3 Cannons 4 | . 1 3 Classes Destroyed 6 | 1 4 1 Worker 1 | . 1 . Tunneler 3 | 3 . . Hauler 2 | . 2 . Swarmer 9 | . 9 . Grunt 6 | . 6 . Subdweller 7 | . . 7 Best Kill Streak 5 | 3 5 2 Combat Bots Only 5 | . 5 2 Max Kills in Single Turn 1 | 1 1 1 Gunslinging . | . . . Exploded . | . . . Melee 1 | . . 1 Uniques/NPCs Destroyed . | . . . Combat | -11 -10 -10 -------- Run | Yrd Mat Sub Hostile Shots Fired 86 | . 32 54 Missed 20 | . 6 14 Damage Taken 1084 | . 257 827 Core 262 | . 63 199 Absorbed by Shields . | . . . Core Remaining (%) 100 | 100 . . Volleys Fired 71 | 13 33 25 Largest 2 | 2 2 2 Hottest 104 | 40 104 104 Shots Fired 130 | 26 65 39 Gun 106 | 26 55 25 Cannon 23 | . 9 14 Launcher . | . . . Special 1 | . 1 . Kinetic 75 | 26 35 14 Thermal 55 | . 30 25 Explosive . | . . . Electromagnetic . | . . . Robot Hit Streak 11 | 5 9 11 Robot Miss Streak 6 | 3 6 2 Penetration Max . | . . . Secondary Targets . | . . . Shots Hit Robots 108 | 11 53 44 Core Hits 85 | 3 47 35 Critical Kills 1 | . . 1 Critical Parts Destroyed 1 | 1 . . Critical Strikes 4 | 1 . 3 Destroy 1 | 1 . . Blast 1 | . . 1 Smash 2 | . . 2 Melee Attacks 72 | . 26 46 Impact 72 | . 26 46 Slashing . | . . . Piercing . | . . . Sneak Attacks . | . . . Combat Hostiles . | . . . Follow-up Attacks . | . . . Damage Inflicted 1683 | 131 679 873 Guns 1124 | 131 577 416 Cannons 290 | . 102 188 Explosions . | . . . Melee 269 | . . 269 Ramming . | . . . Kinetic 655 | 131 336 188 Thermal 759 | . 343 416 Explosive . | . . . Electromagnetic . | . . . Impact 269 | . . 269 Slashing . | . . . Piercing . | . . . Highest Corruption . | . . . Average Corruption . | . . . Corruption Purged . | . . . Corruption Blocked . | . . . Overload Shots . | . . . Overflow Damage . | . . . Projectiles . | . . . Explosions . | . . . Melee . | . . . Knockbacks 1 | . . 1 Impact 1 | . . 1 Kinetic . | . . . Secondary . | . . . Self-Inflicted Damage . | . . . Shots . | . . . Rammed . | . . . Targets Rammed . | . . . Kicked . | . . . Crushed . | . . . Highest Temperature 36 | . 36 24 Average Temperature 7 | . 5 10 Received Heat Transfer 165 | . 81 84 Siege Activations . | . . . Robots Corrupted . | . . . Combat Hostiles . | . . . Parts Fried . | . . . Impact Corruptions . | . . . Robots Melted . | . . . Combat Hostiles . | . . . Parts Melted 1 | . . 1 Heat Transferred 955 | . 425 530 Parts Sabotaged . | . . . Parts Stolen . | . . . Parts Stripped . | . . . Power Chain Reactions . | . . . Alert | -11 -10 -10 ------- Run | Yrd Mat Sub Peak Influence 222 | 15 222 . Initial 9 | . 9 . Average 75 | 5 85 . Maximum Alert Level 1 | . 1 . Low Security (%) 85 | 100 83 . Level 1 14 | . 16 . Level 2 . | . . . Level 3 . | . . . Level 4 . | . . . Level 5 . | . . . High Security . | . . . Max Security . | . . . Squads Dispatched 1 | . 1 . Investigation . | . . . Extermination . | . . . Reinforcement 1 | . 1 . Assault . | . . . Garrison . | . . . Intercept . | . . . Searches Triggered . | . . . Construction Impeded . | . . . Haulers Reinforced . | . . . Active Scanning Responses . | . . . Cargo Convoy Interrupts . | . . . Stealth | -11 -10 -10 --------- Run | Yrd Mat Sub Distress Signals 3 | . 3 . Communications Jammed . | . . . Distress Signals . | . . . Times Spotted 34 | . 25 9 Peak Tracking Total 6 | . 6 2 Tactical Retreats 3 | . 3 . Traps | -11 -10 -10 ------- Run | Yrd Mat Sub Traps Triggered . | . . . Indirectly . | . . . Trap Hack Attempts . | . . . Triggered . | . . . Disarmed . | . . . Reprogrammed . | . . . Reused . | . . . Traps Extracted . | . . . Installed . | . . . Triggered . | . . . Machines | -11 -10 -10 ---------- Run | Yrd Mat Sub Machines Disabled 1 | . 1 . Max in Single Turn 1 | . 1 . Machines Repaired . | . . . Machines Dismantled . | . . . Machines Sabotaged . | . . . Overloaded Fab Kills . | . . . Hacking | -11 -10 -10 --------- Run | Yrd Mat Sub Machines Accessed 2 | . 2 . Terminals 2 | . 2 . Fabricators . | . . . Repair Stations . | . . . Recycling Units . | . . . Scanalyzers . | . . . Garrison Access . | . . . Total Hacks 9 | . 9 . Successful 6 | . 6 . Failed 3 | . 3 . Catastrophic . | . . . Database Lockouts . | . . . Manual 9 | . 9 . Terminals 9 | . 9 . Fabricators . | . . . Repair Stations . | . . . Recycling Units . | . . . Scanalyzers . | . . . Garrison Access . | . . . Terminal Hacks 2 | . 2 . Unreport Threat 2 | . 2 . Fabricator Hacks . | . . . Repair Station Hacks . | . . . Recycling Unit Hacks . | . . . Scanalyzer . | . . . Garrison Access Hacks . | . . . Unauthorized Hacks 4 | . 4 . Terminals 4 | . 4 . Botnet 2 | . 2 . Skim 2 | . 2 . Fabricators . | . . . Repair Stations . | . . . Recycling Units . | . . . Scanalyzers . | . . . Garrison Access . | . . . Data Cores Recovered . | . . . Used . | . . . Hacking Detections 2 | . 2 . Full Trace Events . | . . . Feedback Events . | . . . Feedback Blocked . | . . . Robot Schematics Acquired . | . . . Robots Built . | . . . Authchips . | . . . Time . | . . . Total Robot Build Rating . | . . . Part Schematics Acquired . | . . . Parts Built . | . . . Authchips . | . . . Time . | . . . Total Part Build Rating . | . . . Parts Repaired . | . . . Time . | . . . Parts Recycled . | . . . Recycled Matter . | . . . Retrieved Matter . | . . . Retrieved Components . | . . . Parts Scanalyzed . | . . . Part Schematics Acquired . | . . . Parts Damaged . | . . . Bothacking | -11 -10 -10 ------------ Run | Yrd Mat Sub Used RIF Installer . | . . . Robots Hacked . | . . . Non-combat . | . . . Combat . | . . . Robot Hacks Applied . | . . . Relay Couplers Released . | . . . Fabnet Peak Effective % . | . . . Robots Rewired . | . . . Allies Hacked . | . . . Hacks Repelled . | . . . Allies | -11 -10 -10 -------- Run | Yrd Mat Sub Total Allies . | . . . Largest Group . | . . . Highest-Rated Group . | . . . Highest-Rated Ally . | . . . Total Orders . | . . . Ally Attacks . | . . . Total Damage . | . . . Kills . | . . . Allies Corrupted . | . . . Allies Melted . | . . . Intel | -11 -10 -10 ------- Run | Yrd Mat Sub Robot Analysis Total . | . . . Derelict Logs Recovered . | . . . Drone Launches . | . . . Drone Recoveries . | . . . Exploration | -11 -10 -10 ------------- Run | Yrd Mat Sub Turns Passed 2346 | 133 889 1324 Spaces Moved 1397 | 63 489 845 Core 6 | 6 . . Treads 22 | 22 . . Legs . | . . . Wheels 1369 | 35 489 845 Hover . | . . . Flight . | . . . Fastest Speed 50 | 50 100 125 Average Speed 125 | 123 122 127 Slowest Speed 215 | 160 130 215 Overloaded Moves . | . . . Propulsion Burnouts . | . . . Robots Hopped . | . . . Cave-ins Triggered . | . . . Exploration Rate (%) 30 | 4 48 39 Regions Visited 2 Branch Regions 1 Pre-discovered Areas . | . . . Known Exits Taken . | . . . Unknown Exits Taken 2 | 1 1 . Scrap Searched . | . . . Spaces Dug 25 | . 1 24 Terrain Destroyed 26 | . 2 24 Melee 24 | . . 24 Projectile 2 | . 2 . AOE . | . . . Terrain Rammed . | . . . Walls Destroyed . | . . . Machines Disabled . | . . . Actions | -11 -10 -10 --------- Run | Yrd Mat Sub Total 1726 | 89 669 968 Wait 110 | . 85 25 Move 1395 | 62 488 845 Hop . | . . . Pick Up 34 | 7 18 9 Fast Attach 6 | 6 . . Attach 4 | 1 1 2 Detach 1 | . 1 . Swap 17 | . 7 10 Drop 16 | . 10 6 Fire 71 | 13 33 25 Melee 72 | . 26 46 Ram . | . . . Kick . | . . . Crush . | . . . Escape Stasis . | . . . Rewire . | . . . Trap . | . . . Miscellaneous . | . . . Route ------- -11/Scrapyard -10/Materials (discovered 2 exits: [*Mat] / [*Sub]) -10/Subcaves History --------- Turn | Location | Event 41 | -11/Scrapyard | Discovered new exit (range 15) 134 | -11/Scrapyard | Entered Materials 309 | -10/Materials | Build established: Mutant 833 | -10/Materials | Discovered new exit (range 16) 979 | -10/Materials | Discovered new exit (range 3) 1023 | -10/Materials | Entered Subcaves 1191 | -10/Subcaves | A swath of the cavern ceiling suddenly collapsed 1285 | -10/Subcaves | Ambushed by Subdweller buried in earth 1745 | -10/Subcaves | Shifting Twisted Machinery released Sub. Beam Cannon 1807 | -10/Subcaves | Core integrity fell below 50% 2078 | -10/Subcaves | A swath of the cavern ceiling suddenly collapsed 2295 | -10/Subcaves | Core integrity fell below 20% 2347 | -10/Subcaves | Destroyed by MU-8JM(R) with Subdweller Machine Gun Last Messages --------------- 02127_ HG-DU8(u) deconstructs Twisted Machinery. 02127_ 4J-EWY(u) builds Twisted Machinery. 02129_ HG-DU8(u) deconstructs Twisted Machinery. 02129_ 4J-EWY(u) builds Twisted Machinery. 02131_ HG-DU8(u) deconstructs Twisted Machinery. 02131_ 4J-EWY(u) builds Twisted Machinery. 02133_ HG-DU8(u) deconstructs Twisted Machinery. 02133_ 4J-EWY(u) builds Twisted Machinery. 02135_ HG-DU8(u) deconstructs Twisted Machinery. 02135_ 4J-EWY(u) builds Twisted Machinery. 02294_ Disposable Heat Sink melted. 02294_ NM-RW8(R) destroyed. 02303_ Dropped Lrg. Storage Unit. 02306_ Acquired Sub. Optics. 02309_ Acquired 10 matter. 02313_ Acquired Sub. Power Source. 02316_ Acquired 1 matter. 02325_ Subatomizers dissect the Lrg. Storage Unit. 02340_ Hrd. Light Armor Plating destroyed. 02342_ MG-9LW(R) Sub. Laser blasted off. Map ----- +----------------------------------------------------+ | ?????????????????????????????????????????????????? | | ?????????????????????????????????????????????????? | | ?????????????????????????????????????????????????? | | ?????????????????????????????????????????????????? | | ?????????????????????????????????????????????????? | | ?????????????????????????????????????????????????? | | ?????????????????????????????????????????????????? | | ?????????????????????????????????????????????????? | | ?????????????????????????????????????????????????? | | ?????????????????????????#???????????????????????? | | ????????????????????????? ???????????????????????? | | ????????????????????????? ##?????????????????????? | | ???????????????#####????? ???????????????????? | | ??????????????## ##???? ???????????????????? | | ??????????????? #???? ???????????????????? | | ???????????????? ##### ??????????????????? | | ?????????????#### ??????????????????? | | ?????????? ### # ??????????????????? | | ??????????? ??????????????????? | | ???????????? ??????????????????? | | ?????????????# # ????????????????????? | | ??????????????##% % #???????????????????????? | | ????????????### % ##??????? ? ??????????? | | #??########## #?????""" ??????????? | | #### % #??? """"""?????????? | | #### ! @## % ""????????? | | ##??# ! ! R "???????? | | ####???# ##### ""????????? | | ###### #??????# ##???##%% ##??????????? | | ##???## ##?????###?????## #???????????? | | #??### % #???????????????# #???????????? | | #??# ####????????????????# ##???????????? | | #?# ##???????????????????? ##????????????? | | #?# ##?????????????????????? ###?????????????? | | ##?###???????????????????????? #???????????????? | | ??????????????????????????????? #???????????????? | | ???????????????????????????????###???????????????? | | ?????????????????????????????????????????????????? | | ?????????????????????????????????????????????????? | | ?????????????????????????????????????????????????? | | ?????????????????????????????????????????????????? | | ?????????????????????????????????????????????????? | | ?????????????????????????????????????????????????? | | ?????????????????????????????????????????????????? | | ?????????????????????????????????????????????????? | | ?????????????????????????????????????????????????? | | ?????????????????????????????????????????????????? | | ?????????????????????????????????????????????????? | | ?????????????????????????????????????????????????? | | ?????????????????????????????????????????????????? | +----------------------------------------------------+ Best States ------------- Heat Dissipation 39 Energy Generation 12 Energy Capacity 265 Matter Stores 300 Matter Capacity 300 Sight Range 16 Terrain Scan Density 10 Armor Coverage 150 Evasion (%) 40 Recoil Reduction 1 Item Schematics ----------------- None Robot Schematics ------------------ None Fabricated ------------ Nothing Alien Tech Used ----------------- None Achievements -------------- None Challenges ------------ None Game ------ Seed ActiveVortexMount Manual? 0 Play Time 00:21:06 Cumulative 84.6 hours Start 2024.10.23 @ 12:52:37 End 2024.10.23 @ 13:10:01 Sessions 1 Manual Loads 0 Difficulty Rogue Special Mode None Game No. 141 Rogue 113 Adventurer 28 Explorer 0 Win Type - Total 0 Types 0/0/0/0/0/0/0/0/0 Lore% 27 Gallery% 30 Achievement% 32 Wizard Run 0 Options --------- Layout 0 ASCII 0 Keyboard 1 Movement Numpad Keybinds 0 Fullscreen 2 Font 36/Smallcaps Map View 76x50 Zoom Use 0% Tactical HUD 1 Map Filters NONE Filters NONE Steam 1 RUN: cca159a1-827c-4fc4-9b05-0a4a6c703b28